[Event "European Women Blitz-ch 2024"]
[Site "Monaco"]
[Date "2025.01.10"]
[Round "9.14"]
[White "Charkhalashvili, Inga"]
[Black "Hrebenshchykova, Yelyzaveta"]
[Result "1-0"]
[Annotator "TA"]
[ECO "E81"]
[WhiteElo "2240"]
[BlackElo "2280"]
[PlyCount "69"]
[EventDate "2025.01.06"]
[EventType "swiss"]
[EventCountry "MNC"]
[SourceTitle "playchess.com"]
[Source "ChessBase"]
[SourceQuality "1"]
[TimeControl "180+2"]

{[%evp 22,69,29,24,28,-16,0,0,4,-6,15,-34,-38,-31,0,-53,0,0,75,89,91,69,135,82,94,95,116,124,108,117,470,201,184,195,210,93,165,84,250,244,333,349,331,112,104,-416,1421,1389,1731,1679]} 1. d4 {[%emt 0:00:01]} Nf6 {[%emt 0:00:01]} 2. c4 {[%emt 0:00:01]} g6 {[%emt 0:00:07]} 3. f3 {[%emt 0:00:02]} Bg7 {[%emt 0:00:03]} 4. e4 {[%emt 0:00:01]} d6 {[%emt 0:00:01]} 5. Nc3 {[%emt 0:00:01]} O-O {[%emt 0:00:01]} 6. Be3 {[%emt 0:00:00]} c5 {[%emt 0:00:06]} 7. dxc5 {[%emt 0:00:02]} dxc5 {[%emt 0:00:01]} 8. Qxd8 {[%emt 0:00:01]} Rxd8 {[%emt 0:00:01]} 9. Bxc5 {[%emt 0:00:02]} Nc6 {[%emt 0:00:27]} 10. Nge2 {[%emt 0:00:01]} Nd7 {[%emt 0:00:18]} 11. Be3 {[%emt 0:00:18]} Nde5 {[%emt 0:00:01]} 12. Nf4 {[%emt 0:00:03]} b6 {[%emt 0:01:15]} 13. a3 {[%emt 0:00:26]} Ba6 {[%emt 0:00:02]} 14. Nb5 {[%emt 0:00:02]} Rac8 {[%emt 0:00:05] Repels Nc7} 15. Be2 {[%emt 0:00:05]} e6 {[%emt 0:00:25]} (15... g5 $5 16. Nd5 e6 $11) 16. O-O {[%emt 0:00:08]} (16. Kf2 $11 {is more appropriate.}) 16... Bxb5 $15 {[%emt 0:00:01]} 17. cxb5 {[%emt 0:00:01]} Nd4 {[%emt 0:00:02] White must now prevent ...Nc2. A dynamic duo of knights.} 18. Rac1 {[%emt 0:00:16]} (18. Rad1 $11 g5 19. Bxd4 (19. Rxd4 Rxd4 20. Nxe6 fxe6 $15) 19... Rxd4 (19... gxf4 20. Bf2 $15) 20. Nh5 Rxd1 21. Rxd1) 18... Nxe2+ {[%emt 0:00:09]} (18... g5 $15 19. Bxd4 Nxf3+ (19... gxf4 20. Rxc8 Rxc8 21. Bc3 $14) 20. gxf3 Bxd4+ 21. Kh1 gxf4) 19. Nxe2 $11 {[%emt 0:00:02]} Nd3 {[%emt 0:00:00]} (19... Nc4 $11 20. Bg5 Rf8) 20. Rxc8 $16 {[%emt 0:00:07]} Rxc8 {[%emt 0:00:01]} 21. b3 {[%emt 0:00:05]} Bf8 {[%emt 0:00:03]} (21... Nb2 $14) 22. a4 {[%emt 0:00:01]} (22. Rd1 $142 Ne5 23. h3) 22... e5 {[%emt 0:00:05]} 23. Rd1 {[%emt 0:00:05]} Nb4 {[%emt 0:00:02]} 24. Rd7 {[%emt 0:00:05]} Rc2 {[%emt 0:00:08]} 25. Kf1 $36 {[%emt 0:00:10][%mdl 2048] White has strong initiative. White is more active.} a6 $2 {[%emt 0:00:13][%mdl 8192]} (25... Rb2 $16 {is more resistant.}) 26. bxa6 {[%emt 0:00:05]} (26. Bxb6 axb5 27. axb5 Rb2 $18) (26. a5 $142) 26... Nxa6 $18 {[%emt 0:00:00]} 27. Bxb6 {[%emt 0:00:01]} Rb2 {[%emt 0:00:01]} 28. Ra7 {[%emt 0:00:14]} (28. Nc1 $18) 28... Nc5 {[%emt 0:00:03] [#]} (28... Rb1+ $16 29. Kf2 Nc5) 29. Ra8 {[%emt 0:00:09]} (29. Nc3 $1 $18) 29... Nd7 $2 {[%emt 0:00:01] [#]} (29... Nxb3 $16 30. Bc7 Nd2+ 31. Kf2 Nc4) 30. Bc7 $1 {[%emt 0:00:17] Threatens to win with Rd8.} Kg7 {[%emt 0:00:06]} 31. Rd8 {[%emt 0:00:03]} Bc5 {[%emt 0:00:09]} 32. Ke1 $2 {[%emt 0:00:17]} ({Don't play} 32. Rxd7 Rb1+ $18) (32. Nc3 $18 Nf8 33. Bxe5+ f6 34. Rd5) 32... Bb4+ $16 {[%emt 0:00:02]} 33. Kf1 $2 {[%emt 0:00:06][%mdl 8192]} (33. Kf2 $16 {and life is bright.} Bc5+ 34. Ke1 Bb4+ 35. Kd1 Rd2+ 36. Kc1) 33... Nc5 $4 {[%emt 0:00:02][%mdl 8192]} (33... Rb1+ $19 34. Kf2 Be1+ 35. Ke3 Rxb3+ 36. Nc3 Rxc3+ 37. Ke2 Rxc7 38. Kxe1 Ra7) 34. Bxe5+ $18 {[%emt 0:00:02]} Kh6 {[%emt 0:00:01]} 35. Bxb2 {[%emt 0:00:01]} 1-0

[Event "European Women Blitz-ch 2024"]
[Site "Monaco"]
[Date "2025.01.10"]
[Round "9.15"]
[White "Hunt, Harriet V"]
[Black "Savina, Anastasia"]
[Result "1-0"]
[Annotator "TA"]
[ECO "C65"]
[WhiteElo "2298"]
[BlackElo "2318"]
[PlyCount "59"]
[EventDate "2025.01.06"]
[EventType "swiss"]
[EventCountry "MNC"]
[SourceTitle "playchess.com"]
[Source "ChessBase"]
[SourceQuality "1"]
[TimeControl "180+2"]

{[%evp 9,59,12,17,23,34,0,0,0,-1,-3,0,-11,22,16,57,49,43,42,104,96,131,145,165,165,155,159,173,128,182,184,196,193,254,249,299,300,405,375,450,460,474,439,547,547,526,464,551,541,539,453,796,794]} 1. e4 {[%emt 0:03:04]} e5 {[%emt 0:00:05]} 2. Nf3 {[%emt 0:00:00]} Nc6 {[%emt 0:00:02]} 3. Bb5 {[%emt 0:00:00]} Nf6 {[%emt 0:00:04]} 4. d3 {[%emt 0:00:00][%cal Bd2d3,Bd3d4][%mdl 32]} Bc5 {[%emt 0:00:03]} 5. c3 {[%emt 0:00:00]} O-O {[%emt 0:00:11]} 6. O-O {[%emt 0:00:00]} d5 {[%emt 0:00:02]} 7. Bxc6 {[%emt 0:00:00]} bxc6 {[%emt 0:00:02]} 8. Nxe5 {[%emt 0:00:00] The position is equal.} dxe4 {[%emt 0:00:30]} 9. d4 {[%emt 0:00:00]} Bd6 {[%emt 0:00:02]} 10. Bg5 {[%emt 0:00:00]} c5 {[%emt 0:00:20]} 11. Nd2 {[%emt 0:00:00]} Bb7 {[%emt 0:00:28]} 12. Ndc4 {[%emt 0:00:00]} cxd4 {[%emt 0:00:04]} 13. cxd4 {[%emt 0:00:00]} h6 {[%emt 0:00:08]} (13... Ba6 $14) 14. Bxf6 $16 {[%emt 0:00:00]} Qxf6 {[%emt 0:00:31]} 15. Nd7 $1 {[%emt 0:00:00][%csl LRf6,LRf8] Excellent horsemanship.} Qg5 {[%emt 0:00:36][%cal Oe4e3] [#] Hoping for ...e3!} 16. Nxd6 {[%emt 0:00:00]} cxd6 {[%emt 0:00:02]} 17. Nxf8 {[%emt 0:00:00]} Rxf8 {[%emt 0:00:02]} 18. Qe2 {[%emt 0:00:00]} Bc6 {[%emt 0:00:06]} (18... f5 $16) 19. Qe3 {[%emt 0:00:00]} Qg6 {[%emt 0:00:04]} 20. Rac1 {[%emt 0:00:00][%cal Ba1c1,Bc1c5,Bc5c7,Bc7a7][%mdl 32]} Bb5 {[%emt 0:00:04]} (20... Bd5 {was worth a try.} 21. b3 a5) 21. Rfe1 $18 {[%emt 0:00:00]} d5 {[%emt 0:00:01]} 22. Rc5 {[%emt 0:00:00][%csl LRb5,LRd5]} Bc6 {[%emt 0:00:03][%cal Bb5c6,Bc6b7,Bb7a6,Ba6c4][%mdl 32]} 23. Rec1 {[%emt 0:00:00]} Bb7 {[%emt 0:00:01]} 24. Rc7 {[%emt 0:00:00] White is clearly winning.} Qb6 {[%emt 0:00:13]} 25. Qb3 {[%emt 0:00:00]} Ba6 {[%emt 0:00:04]} 26. Qxb6 {[%emt 0:00:00]} axb6 {[%emt 0:00:06]} 27. Ra7 {[%emt 0:00:04]} Bc4 {[%emt 0:00:00]} 28. b3 {[%emt 0:00:01]} Bd3 {[%emt 0:00:00]} 29. Rcc7 {[%emt 0:00:05]} Re8 {[%emt 0:00:02]} (29... b5 $142 30. a4 bxa4 31. bxa4 g5) 30. Rxf7 {[%emt 0:00:03] Weighted Error Value: White=0.11 (very precise) /Black=0.40.  Mistake:       	---       	Black=4      Inaccurate:     	White=1     	Black=4      OK:         	White=11    	Black=4      Best:        	White=2     	---} 1-0

[Event "European Women Blitz-ch 2024"]
[Site "Monaco"]
[Date "2025.01.10"]
[Round "9.16"]
[White "Kanyamarala, Trisha"]
[Black "Calzetta Ruiz, Monica"]
[Result "0-1"]
[Annotator "TA"]
[ECO "D06"]
[WhiteElo "2158"]
[BlackElo "2230"]
[PlyCount "78"]
[EventDate "2025.01.06"]
[EventType "swiss"]
[EventCountry "MNC"]
[SourceTitle "playchess.com"]
[Source "ChessBase"]
[SourceQuality "1"]
[TimeControl "180+2"]

{[%evp 13,78,27,23,8,8,10,29,0,-16,6,8,0,11,7,42,30,43,35,38,40,118,97,91,83,82,86,84,86,138,93,88,32,38,35,31,26,37,33,32,12,16,0,0,0,0,0,0,0,0,-14,469,0,496,0,0,-32,0,-24,-15,-408,-100,-120,-95,-467,-439,-864,-829]} 1. d4 {[%emt 0:00:01]} d5 {[%emt 0:00:01]} 2. c4 {[%emt 0:00:01]} c5 {[%emt 0:00:01]} 3. cxd5 {[%emt 0:00:11]} Nf6 {[%emt 0:00:01]} 4. Nf3 {[%emt 0:00:11]} cxd4 {[%emt 0:00:03]} 5. Qxd4 {[%emt 0:00:08]} Qxd5 {[%emt 0:00:02]} 6. Nc3 {[%emt 0:00:07]} Qxd4 {[%emt 0:00:01]} 7. Nxd4 {[%emt 0:00:01]} a6 {[%emt 0:00:03]} 8. Bg5 {[%emt 0:00:22]} e5 {[%emt 0:00:09] Wards off g3} 9. Nb3 {[%emt 0:00:13] Bxf6 is in the air} Nbd7 {[%emt 0:00:14]} 10. e3 {[%emt 0:00:11]} Bb4 {[%emt 0:00:09]} 11. Bd3 {[%emt 0:00:24] Inhibits Ne4.} O-O {[%emt 0:00:09]} 12. O-O {[%emt 0:00:05]} h6 {[%emt 0:00:13]} 13. Bh4 {[%emt 0:00:02]} b6 {[%emt 0:00:47]} 14. Rac1 {[%emt 0:00:36]} Bb7 {[%emt 0:00:03]} 15. a3 {[%emt 0:00:06]} Be7 {[%emt 0:00:10]} 16. Rfd1 {[%emt 0:00:11]} Rac8 {[%emt 0:00:02]} (16... Rad8 $14) 17. Bf5 $16 {[%emt 0:00:02]} g5 {[%emt 0:00:54]} (17... Rc4 $2 18. Rxd7 Nxd7 19. Bxe7 $18) 18. Bxd7 {[%emt 0:00:03]} Rcd8 {[%emt 0:00:01] [#]} 19. Bxg5 $1 {[%emt 0:00:45]} hxg5 {[%emt 0:00:03]} 20. Bf5 {[%emt 0:00:00]} Nd5 {[%emt 0:00:07]} ({Black should try} 20... Kg7) 21. Na4 {[%emt 0:00:00]} Kg7 {[%emt 0:00:11]} 22. Be4 {[%emt 0:00:00]} (22. Nd2 $16) 22... f5 $14 {[%emt 0:00:22]} 23. Bxd5 {[%emt 0:00:02]} Bxd5 {[%emt 0:00:00]} 24. Nd2 {[%emt 0:00:04]} b5 {[%emt 0:00:00]} 25. Nc3 {[%emt 0:00:02]} Be6 {[%emt 0:00:00]} 26. Nf3 $36 {[%emt 0:00:01][%mdl 2048] White has the initiative.} Kf6 {[%emt 0:00:00]} 27. Nd2 {[%emt 0:00:03]} Rd7 {[%emt 0:00:00]} 28. Ndb1 {[%emt 0:00:03]} Rfd8 {[%emt 0:00:00][%cal Bf8d8,Bd8d7,Bd7c7][%mdl 32]} 29. Rxd7 {[%emt 0:00:01]} Rxd7 {[%emt 0:00:00]} 30. Rd1 {[%emt 0:00:01]} Rc7 {[%emt 0:00:00]} 31. Rc1 {[%emt 0:00:01][%cal Oc3e4] Threatens to win with Ne4+!.} b4 $2 {[%emt 0:00:01][%mdl 8192]} (31... Kf7 $11) 32. axb4 $2 {[%emt 0:00:01]} (32. Ne4+ $18 fxe4 33. Rxc7) 32... Bxb4 $2 {[%emt 0:00:00][%mdl 8192]} (32... Rb7 $11 {and Black stays safe.}) 33. Rd1 $2 {[%emt 0:00:01]} ({White should try} 33. Ne4+ $18 fxe4 34. Rxc7) 33... Bb3 {[%emt 0:00:03][%cal Ob4c3] and ...Bxc3! should not be overlooked} 34. Rd2 {[%emt 0:00:04][%cal Og2g4]} Ke6 {[%emt 0:00:00][%mdl 1024] Black has compensation.} 35. h3 {[%emt 0:00:01]} a5 {[%emt 0:00:01]} 36. Rd3 $2 {[%emt 0:00:02][%mdl 8192] [#]} (36. Rd8 $11) 36... a4 $2 {[%emt 0:00:01]} (36... Bc2 $1 $19 {[%cal Rc2d3]} 37. Rd8 Bxb1 38. Re8+ Kd7 39. Rxe5 Bxc3 40. bxc3 Ra7) 37. Rd2 $17 {[%emt 0:00:02]} Ba5 {[%emt 0:00:02]} 38. Rd3 $2 {[%emt 0:00:04][%mdl 8192] [#]} (38. Kh2 $17 {is a better chance.}) 38... Bc2 $1 $19 {[%emt 0:00:01]} 39. Rd2 {[%emt 0:00:03]} (39. Rd5 $142 Bxc3 40. Nxc3 Rxc3 41. Rd2) 39... Bxb1 {[%emt 0:00:01]} 0-1

[Event "European Women Blitz-ch 2024"]
[Site "Monaco"]
[Date "2025.01.10"]
[Round "9.17"]
[White "Kazarian, Anna-Maja"]
[Black "Benmesbah, Natacha"]
[Result "1-0"]
[Annotator "TA"]
[ECO "B12"]
[WhiteElo "2206"]
[BlackElo "2259"]
[PlyCount "65"]
[EventDate "2025.01.06"]
[EventType "swiss"]
[EventCountry "MNC"]
[SourceTitle "playchess.com"]
[Source "ChessBase"]
[SourceQuality "1"]
[TimeControl "180+2"]

{[%evp 9,65,16,18,12,21,25,20,0,11,0,7,-2,0,-32,-14,-33,-23,-28,-22,-34,-28,-33,-54,-39,0,0,0,0,0,-78,-50,-59,-8,-23,10,10,11,11,14,14,12,14,14,13,30,16,69,-643,77,67,702,698,707,632,730,728,737,734]} 1. e4 {[%emt 0:00:01]} c6 {[%emt 0:00:00]} 2. d4 {[%emt 0:00:02]} d5 {[%emt 0:00:01]} 3. f3 {[%emt 0:00:07]} e6 {[%emt 0:00:21]} 4. Nc3 {[%emt 0:00:01]} Bb4 {[%emt 0:00:11]} 5. Qd3 {[%emt 0:00:01]} b6 {[%emt 0:00:25]} 6. Nge2 {[%emt 0:00:02]} Ba6 {[%emt 0:00:33]} 7. Qe3 {[%emt 0:00:01]} Nd7 {[%emt 0:00:03]} 8. a3 {[%emt 0:00:10]} Bxc3+ $1 {[%emt 0:00:07]} 9. Nxc3 {[%emt 0:00:05]} Bxf1 {[%emt 0:00:02]} 10. Kxf1 {[%emt 0:00:07]} Ne7 {[%emt 0:00:13]} 11. g3 {[%emt 0:00:33]} O-O {[%emt 0:00:03]} 12. Kg2 {[%emt 0:00:01]} c5 {[%emt 0:00:04]} 13. dxc5 {[%emt 0:00:18]} bxc5 {[%emt 0:00:07]} 14. exd5 {[%emt 0:00:04]} exd5 {[%emt 0:00:03]} 15. Re1 {[%emt 0:00:15]} Re8 {[%emt 0:00:09] and ...d4 should not be overlooked} 16. Qf2 {[%emt 0:00:02]} Rb8 {[%emt 0:00:22]} 17. b3 {[%emt 0:00:04]} d4 {[%emt 0:00:18]} 18. Ne4 {[%emt 0:00:11]} Nd5 {[%emt 0:00:01]} 19. Bg5 {[%emt 0:00:15]} (19. b4 $1 $11) 19... f6 {[%emt 0:00:02]} 20. Bd2 {[%emt 0:00:01]} f5 {[%emt 0:00:07]} (20... Qb6 $15) 21. Nd6 $1 $11 {[%emt 0:00:06][%csl LRe8,LRf5]} Rxe1 {[%emt 0:00:02]} 22. Rxe1 {[%emt 0:00:01] and Re8+ would now be decisive} Qf6 {[%emt 0:00:01]} 23. Nc4 {[%emt 0:00:16]} f4 {[%emt 0:00:12]} 24. Bxf4 {[%emt 0:00:08]} Nxf4+ {[%emt 0:00:01]} 25. gxf4 {[%emt 0:00:01]} Qxf4 {[%emt 0:00:01]} 26. Qg3 {[%emt 0:00:11]} Qf8 {[%emt 0:00:04][%cal Od4d3]} 27. Qc7 $36 {[%emt 0:00:16][%mdl 2048] Black is under pressure.} Nf6 {[%emt 0:00:01]} (27... Rd8 $11) 28. Re7 $2 {[%emt 0:00:21][%mdl 8192]} (28. Qxa7 $14 d3 29. cxd3) 28... Re8 $2 {[%emt 0:00:07]} ({Black should play} 28... Nd5 $19 29. Qxc5 Nxe7 30. Qxa7 d3 31. cxd3 Ng6 (31... Rxb3 $2 32. Qd4 $19)) 29. Re5 {[%emt 0:00:13] White is much more active.} Qf7 $2 {[%emt 0:00:10][%mdl 8192]} (29... Rxe5 $14 30. Qxe5 (30. Nxe5 Nd5 $11) 30... Nd7) 30. Qxf7+ $18 {[%emt 0:00:02]} ({Weaker is} 30. Qxc5 Qg6+ 31. Kf1 Qxc2 $11) 30... Kxf7 {[%emt 0:00:01]} 31. Nd6+ {[%emt 0:00:01]} ({Less strong is} 31. Rxc5 Re2+ 32. Kg1 Ke6 $14) 31... Kf8 {[%emt 0:00:02]} 32. Nxe8 {[%emt 0:00:01]} Nxe8 {[%emt 0:00:01]} 33. Rxc5 {[%emt 0:00:01]} 1-0

[Event "European Women Blitz-ch 2024"]
[Site "Monaco"]
[Date "2025.01.10"]
[Round "9.18"]
[White "Shvedova, Alexandra"]
[Black "Toncheva, Nadya"]
[Result "0-1"]
[Annotator "TA"]
[ECO "B38"]
[WhiteElo "2266"]
[BlackElo "2313"]
[PlyCount "126"]
[EventDate "2025.01.06"]
[EventType "swiss"]
[EventCountry "MNC"]
[SourceTitle "playchess.com"]
[Source "ChessBase"]
[SourceQuality "1"]
[TimeControl "180+2"]

{[%evp 29,126,53,56,29,56,35,40,-19,-10,-22,-25,-19,52,58,56,56,56,63,68,82,88,88,88,81,90,93,109,120,105,43,43,43,52,52,52,42,39,38,25,5,29,0,0,0,0,-27,-20,-47,66,0,0,-10,-11,-6,60,68,128,149,196,195,232,191,201,87,75,78,232,247,387,412,397,379,416,413,519,391,578,524,608,-254,-289,-279,-267,-279,-291,-278,-223,-1745,-1824,-29990,-29991,-29992,-29993,-29993,-29983,-29983,-29981,-29981,-29981]} 1. e4 {[%emt 0:00:01]} c5 {[%emt 0:00:01]} 2. Nf3 {[%emt 0:00:02]} Nc6 {[%emt 0:00:01]} 3. d4 {[%emt 0:00:01]} cxd4 {[%emt 0:00:01]} 4. Nxd4 {[%emt 0:00:01]} g6 {[%emt 0:00:01]} 5. c4 {[%emt 0:00:02]} Bg7 {[%emt 0:00:01]} 6. Be3 {[%emt 0:00:01]} Nf6 {[%emt 0:00:01]} 7. Nc3 {[%emt 0:00:02]} O-O {[%emt 0:00:03]} 8. Be2 {[%emt 0:00:08]} d6 {[%emt 0:00:01]} 9. f3 {[%emt 0:00:07]} Bd7 {[%emt 0:00:02]} 10. Qd2 {[%emt 0:00:01]} Nxd4 {[%emt 0:00:04]} 11. Bxd4 {[%emt 0:00:02]} a5 {[%emt 0:00:02]} 12. b3 {[%emt 0:00:10]} Bc6 {[%emt 0:00:02]} 13. O-O {[%emt 0:00:05]} Nd7 {[%emt 0:00:01]} 14. Be3 {[%emt 0:00:04]} Nc5 {[%emt 0:00:02]} 15. Rac1 {[%emt 0:00:04]} Qb6 {[%emt 0:00:03]} 16. Rb1 {[%emt 0:00:20]} Rfc8 {[%emt 0:00:12]} 17. Rfc1 {[%emt 0:00:03]} Qb4 {[%emt 0:00:16]} 18. Rc2 {[%emt 0:00:45]} ({White should try} 18. Qb2 $14 Qb6 19. Kh1) 18... a4 $1 $11 {[%emt 0:00:30]} 19. bxa4 {[%emt 0:00:14]} Qa5 {[%emt 0:00:11]} (19... Bxc3 {simplifies} 20. Rxb4 Bxd2 21. Rxd2 Nxa4 22. g4 f6) 20. Nd5 {[%emt 0:00:22]} Bxd5 {[%emt 0:00:06]} (20... Re8 $11) 21. Qxa5 $14 {[%emt 0:00:12]} Rxa5 {[%emt 0:00:01]} 22. cxd5 {[%emt 0:00:04]} Rxa4 {[%emt 0:00:28]} 23. Rxb7 {[%emt 0:00:20]} Bf6 {[%emt 0:00:15][%cal Oa4a2]} 24. Rb5 {[%emt 0:00:05]} Rca8 {[%emt 0:00:03]} 25. Bc4 {[%emt 0:00:06]} Ra3 {[%emt 0:00:10]} 26. Bc1 {[%emt 0:00:03]} Bd4+ {[%emt 0:00:05]} 27. Kf1 {[%emt 0:00:01]} R3a5 {[%emt 0:00:07]} 28. Rxa5 {[%emt 0:00:06]} Rxa5 {[%emt 0:00:01]} 29. Bb2 {[%emt 0:00:04]} (29. Bd2 $16 Ra3 30. Bb4) 29... Bxb2 {[%emt 0:00:20]} 30. Rxb2 {[%emt 0:00:01][%mdl 4096] Endgame KRB-KRN. White is a pawn up.} Ra3 {[%emt 0:00:02]} 31. Ke2 {[%emt 0:00:05]} Kg7 {[%emt 0:00:02]} 32. Kd2 {[%emt 0:00:01][%cal Oe4e5]} Kf6 {[%emt 0:00:06]} 33. Bb3 {[%emt 0:00:06]} h5 {[%emt 0:00:03]} 34. Kc3 {[%emt 0:00:03]} h4 {[%emt 0:00:04]} 35. Rc2 {[%emt 0:00:07]} g5 {[%emt 0:00:07]} 36. Kb2 {[%emt 0:00:01]} Ra7 {[%emt 0:00:03]} 37. Bc4 {[%emt 0:00:04]} Rb7+ {[%emt 0:00:05][%mdl 1024] Black has compensation.} 38. Kc3 {[%emt 0:00:01]} Ra7 {[%emt 0:00:04]} (38... Ke5 $1 $15) 39. Bb3 {[%emt 0:00:04]} (39. Bb5 $14) 39... Ke5 {[%emt 0:00:01]} 40. Kb4 {[%emt 0:00:03] [#]} g4 $1 {[%emt 0:00:10]} 41. Bc4 {[%emt 0:00:03]} h3 {[%emt 0:00:06]} ({Black should play} 41... Ra4+ $11 42. Kb5 gxf3) 42. fxg4 {[%emt 0:00:03]} Nxe4 {[%emt 0:00:09]} (42... Ra4+ $14 43. Kc3 (43. Kb5 hxg2 44. Rxg2 Ra8 $14) 43... Nxe4+ 44. Kb3 hxg2 45. Rxg2 Nc5+ 46. Kc3 Ne4+ 47. Kd3 Nc5+ 48. Kc3) 43. gxh3 $16 {[%emt 0:00:02]} Kd4 {[%emt 0:00:01]} (43... Rb7+ $16 44. Ka3 Rb8) 44. a4 $18 {[%emt 0:00:04]} Nc5 {[%emt 0:00:04]} 45. Bb5 {[%emt 0:00:02]} Kxd5 {[%emt 0:00:05]} 46. a5 {[%emt 0:00:01]} (46. h4 $18 {has better winning chances.}) 46... Rb7 $16 {[%emt 0:00:03]} 47. Rd2+ {[%emt 0:00:02]} Ke6 $2 {[%emt 0:00:02] [#]} (47... Ke5 $16) 48. Kc4 $1 $18 {[%emt 0:00:01]} Ne4 {[%emt 0:00:04]} (48... Ra7 $142 49. Ra2 Ke5) 49. Re2 {[%emt 0:00:02]} d5+ {[%emt 0:00:01]} 50. Kb4 {[%emt 0:00:01]} Kd6 {[%emt 0:00:01]} 51. a6 {[%emt 0:00:05]} Rb8 {[%emt 0:00:04]} (51... Rxb5+ $2 52. Kxb5 Nc3+ 53. Kb4 Nxe2 54. a7 $18) 52. Re3 {[%emt 0:00:03]} e5 {[%emt 0:00:04]} (52... Ra8 {was called for.} 53. h4 Kc7) 53. h4 {[%emt 0:00:02]} Nc5 {[%emt 0:00:02]} 54. h5 $4 {[%emt 0:00:01][%mdl 8192]} (54. Ra3 $18 {avoids the disaster.}) 54... Nxa6+ $19 {[%emt 0:00:00]} 55. Ka5 {[%emt 0:00:01]} Nc7 {[%emt 0:00:02]} 56. Bd3 {[%emt 0:00:02]} Kc5 {[%emt 0:00:02] ( -> ...Ra8+)} 57. Ka4 {[%emt 0:00:01]} Kd4 {[%emt 0:00:02]} 58. Rf3 $2 {[%emt 0:00:02]} (58. Rg3) 58... e4 {[%emt 0:00:01]} 59. Rxf7 {[%emt 0:00:01]} exd3 {[%emt 0:00:02]} 60. h6 {[%emt 0:00:03]} d2 {[%emt 0:00:01]} 61. Rf1 {[%emt 0:00:01]} Ke3 {[%emt 0:00:02]} 62. h7 {[%emt 0:00:02]} Rh8 {[%emt 0:00:02]} 63. g5 {[%emt 0:00:05]} Rxh7 {[%emt 0:00:01]} 0-1

[Event "European Women Blitz-ch 2024"]
[Site "Monaco"]
[Date "2025.01.10"]
[Round "10.1"]
[White "Wagner, Dinara"]
[Black "Maltsevskaya, Aleksandra"]
[Result "0-1"]
[Annotator "TA"]
[ECO "E92"]
[WhiteElo "2437"]
[BlackElo "2368"]
[PlyCount "76"]
[EventDate "2025.01.06"]
[EventType "swiss"]
[EventCountry "MNC"]
[SourceTitle "playchess.com"]
[Source "ChessBase"]
[SourceQuality "1"]
[TimeControl "180+2"]

{[%evp 21,76,82,80,78,99,80,85,67,91,42,33,34,32,7,22,28,59,0,63,31,16,17,33,23,27,25,33,0,28,0,28,0,0,0,15,-22,-6,0,0,-401,-393,-1159,-1125,-1430,-1191,-1179,-1154,-1172,-1139,-1282,-1278,-1357,-1333,-1328,-1328,-2787,-2565]} 1. d4 {[%emt 0:00:02]} Nf6 {[%emt 0:00:01]} 2. c4 {[%emt 0:00:00]} g6 {[%emt 0:00:06]} 3. Nc3 {[%emt 0:00:01]} Bg7 {[%emt 0:00:02]} 4. e4 {[%emt 0:00:00]} d6 {[%emt 0:00:01]} 5. Nf3 {[%emt 0:00:01]} O-O {[%emt 0:00:02]} 6. Be2 {[%emt 0:00:01]} e5 {[%emt 0:00:02]} 7. Be3 {[%emt 0:00:01]} Ng4 {[%emt 0:00:03]} 8. Bg5 {[%emt 0:00:00]} f6 {[%emt 0:00:02]} 9. Bc1 {[%emt 0:00:01]} Nc6 {[%emt 0:00:01]} 10. d5 {[%emt 0:00:05]} Ne7 {[%emt 0:00:01]} 11. h3 {[%emt 0:00:01][%cal Bh2h3,Bh3h4,Bh4h5][%mdl 32]} Nh6 {[%emt 0:00:02]} 12. h4 {[%emt 0:00:00]} c6 {[%emt 0:00:20]} 13. h5 {[%emt 0:00:03]} g5 {[%emt 0:00:06]} 14. Bd2 {[%emt 0:00:14]} a6 {[%emt 0:00:05]} 15. dxc6 {[%emt 0:00:10]} (15. a4 $16) 15... bxc6 $14 {[%emt 0:00:01]} 16. Qc2 {[%emt 0:00:03]} Be6 {[%emt 0:00:11]} 17. O-O-O {[%emt 0:00:05]} c5 {[%emt 0:00:14]} 18. Be3 {[%emt 0:00:15] Bxc5 is the strong threat.} Qb8 {[%emt 0:00:09]} 19. Qa4 {[%emt 0:00:29] Repels Nc6} (19. Qd2 $14 Rd8 20. Ng1) 19... Ng4 {[%emt 0:00:34]} (19... Qc7 $11) 20. Nh2 {[%emt 0:00:11]} Nxh2 {[%emt 0:00:51]} 21. Rxh2 {[%emt 0:00:00]} h6 {[%emt 0:00:08]} 22. g4 {[%emt 0:00:01]} Rc8 {[%emt 0:00:44]} 23. Nd5 {[%emt 0:00:23]} Nc6 {[%emt 0:00:00]} 24. f3 {[%emt 0:00:14]} Qb7 {[%emt 0:00:00]} 25. Kb1 {[%emt 0:00:31]} Rab8 {[%emt 0:00:00][%csl Gb8][%cal Rb7b2]} 26. Bc1 {[%emt 0:00:01]} Nd4 {[%emt 0:00:00]} 27. Rf2 {[%emt 0:00:08]} Kf7 {[%emt 0:00:00]} 28. Bd3 {[%emt 0:00:02]} a5 {[%emt 0:00:00]} 29. Qxa5 {[%emt 0:00:10]} Ra8 {[%emt 0:00:00] The board is on fire.} 30. Qb6 $2 {[%emt 0:00:07][%mdl 8192]} (30. Qc3 $1 $11 {and White has nothing to worry.}) 30... Bxd5 $19 {[%emt 0:00:00]} 31. Qxd6 $2 {[%emt 0:00:01]} (31. Qxb7+ Bxb7 32. b3) 31... Be6 {[%emt 0:00:00][%cal Oa8a2]} 32. f4 {[%emt 0:00:12]} Ra6 {[%emt 0:00:00]} 33. fxe5 {[%emt 0:00:06]} Rxd6 {[%emt 0:00:01]} 34. exd6 {[%emt 0:00:00]} Kg8 {[%emt 0:00:06]} 35. Rdf1 {[%emt 0:00:06]} Rd8 {[%emt 0:00:05]} 36. e5 {[%emt 0:00:11]} fxe5 {[%emt 0:00:02][%cal Oe5e4] aiming for ...e4!.} 37. Re1 {[%emt 0:00:01]} Qa6 {[%emt 0:00:03]} 38. Bd2 {[%emt 0:00:13]} Bxc4 {[%emt 0:00:02]} 0-1